fUSD/lending_fUSD_20250611
["ID","MTS","AMOUNT","RATE_DAILY","PERIOD"]
[365368009,1749621043139,-490.0,0.00016438,2]
[365368012,1749621043148,-490.0,0.00016438,2]
[365368014,1749621043157,-588.47,0.00016438,2]
[365368017,1749621043166,-450.0,0.00016438,2]
[365368020,1749621043175,-490.0,0.00016438,2]
[365368023,1749621043184,-490.0,0.00016438,2]
[365368026,1749621043193,-355.65342271,0.00016438,2]
[365368029,1749621043202,-490.0,0.00016438,2]
[365368032,1749621043212,-490.0,0.00016438,2]
[365368035,1749621043221,-490.0,0.00016438,2]
[365368038,1749621043230,-402.98715018,0.00016438,2]
[365368041,1749621043239,-490.0,0.00016438,2]
[365368044,1749621043248,-490.0,0.00016438,2]
[365368047,1749621043257,-431.70497968,0.00016438,2]
[365368050,1749621043266,-956.33,0.00016438,2]
[365368053,1749621043275,-490.0,0.00016438,2]
[365368056,1749621043284,-253.72407858,0.00016438,2]
[365368059,1749621043292,-490.0,0.00016438,2]
[365368062,1749621043302,-443.06501629,0.00016438,2]
[365368065,1749621043311,-490.0,0.00016438,2]
[365368068,1749621043320,-490.0,0.00016438,2]
[365368071,1749621043329,-470.0,0.00016438,2]
[365368074,1749621043338,-490.0,0.00016438,2]
[365368077,1749621043349,-490.0,0.00016438,2]
[365368080,1749621043358,-490.0,0.00016438,2]
[365368083,1749621043367,-470.0,0.00016438,2]
[365368086,1749621043376,-490.0,0.00016438,2]
[365368089,1749621043385,-490.0,0.00016438,2]
[365368092,1749621043394,-490.0,0.00016438,2]
[365368095,1749621043402,-490.0,0.00016438,2]
[365368097,1749621043411,-490.0,0.00016438,2]
[365368100,1749621043420,-460.0,0.00016438,2]
[365368103,1749621043429,-490.0,0.00016438,2]
[365368105,1749621043438,-490.0,0.00016438,2]
[365368108,1749621043447,-490.0,0.00016438,2]
[365368110,1749621043456,-490.0,0.00016438,2]
[365368112,1749621043465,-453.24484189,0.00016438,2]
[365368114,1749621043474,-490.0,0.00016438,2]
[365368116,1749621043483,-500.0,0.00016438,2]
[365368118,1749621043492,-459.80358356,0.00016438,2]
[365368120,1749621043501,-490.0,0.00016438,2]
[365368122,1749621043511,-490.0,0.00016438,2]
[365368124,1749621043520,-490.0,0.00016438,2]
[365368125,1749621043529,-490.0,0.00016438,2]
[365368128,1749621043539,-490.0,0.00016438,2]
[365368130,1749621043548,-490.0,0.00016438,2]
[365368132,1749621043557,-480.0,0.00016438,2]
[365368133,1749621043566,-490.0,0.00016438,2]
[365368135,1749621043576,-490.0,0.00016438,2]
[365368137,1749621043585,-595.96,0.00016438,2]
[365368140,1749621043595,-490.0,0.00016438,2]
[365368142,1749621043605,-490.0,0.00016438,2]
[365368144,1749621043614,-490.0,0.00016438,2]
[365368146,1749621043623,-490.0,0.00016438,2]
[365368148,1749621043632,-490.0,0.00016438,2]
[365368150,1749621043641,-490.0,0.00016438,2]
[365368151,1749621043649,-490.0,0.00016438,2]
[365368153,1749621043658,-490.0,0.00016438,2]
[365368155,1749621043667,-490.0,0.00016438,2]
[365368157,1749621043676,-463.37674374,0.00016438,2]
[365368159,1749621043685,-450.0,0.00016438,2]
[365368161,1749621043694,-320.0,0.00016438,2]
[365368163,1749621043703,-490.0,0.00016438,2]
[365368165,1749621043712,-490.0,0.00016438,2]
[365368167,1749621043721,-490.0,0.00016438,2]
[365368169,1749621043730,-490.0,0.00016438,2]
[365368171,1749621043738,-490.0,0.00016438,2]
[365368173,1749621043747,-486.7874888,0.00016438,2]
[365368175,1749621043756,-490.0,0.00016438,2]
[365368177,1749621043765,-229.140747,0.00016438,2]
[365368178,1749621043774,-531.44651185,0.00016438,2]
[365368180,1749621043783,-490.0,0.00016438,2]
[365368182,1749621043792,-451.09936479,0.00016438,2]
[365368184,1749621043801,-490.0,0.00016438,2]
[365368186,1749621043811,-490.0,0.00016438,2]
[365368188,1749621043820,-490.0,0.00016438,2]
[365368190,1749621043829,-490.0,0.00016438,2]
[365368193,1749621043839,-490.0,0.00016438,2]
[365368194,1749621043848,-490.0,0.00016438,2]
[365368197,1749621043857,-490.0,0.00016438,2]
[365368198,1749621043867,-480.0,0.00016438,2]
[365368200,1749621043879,-490.0,0.00016438,2]
[365368203,1749621043888,-490.0,0.00016438,2]
[365368205,1749621043897,-490.0,0.00016438,2]
[365368207,1749621043907,-490.0,0.00016438,2]
[365368209,1749621043916,-556.9048097,0.00016438,2]
[365368211,1749621043928,-419.96611995,0.00016438,2]
[365368213,1749621043938,-384.26671489,0.00016438,2]
[365368215,1749621043947,-490.0,0.00016438,2]
[365368217,1749621043957,-490.0,0.00016438,2]
[365368218,1749621043966,-490.0,0.00016438,2]
[365368221,1749621043976,-485.4233553,0.00016438,2]
[365368223,1749621043986,-587.47,0.00016438,2]
[365368224,1749621043995,-490.0,0.00016438,2]
[365368227,1749621044005,-447.32017754,0.00016438,2]
[365368228,1749621044015,-543.91,0.00016438,2]
[365368231,1749621044024,-532.3,0.00016438,2]
[365368233,1749621044033,-480.0,0.00016438,2]
[365368235,1749621044042,-365.36028994,0.00016438,2]
[365368237,1749621044051,-490.0,0.00016438,2]
[365368239,1749621044061,-375.08096029,0.00016438,2]
[365368241,1749621044071,-259.34281122,0.00016438,2]
[365368243,1749621044080,-555.052129,0.00016438,2]
[365368245,1749621044089,-490.0,0.00016438,2]
[365368247,1749621044098,-490.0,0.00016438,2]
[365368248,1749621044108,-490.0,0.00016438,2]
[365368250,1749621044117,-490.0,0.00016438,2]
[365368252,1749621044126,-490.0,0.00016438,2]
[365368254,1749621044135,-490.0,0.00016438,2]
[365368256,1749621044144,-490.0,0.00016438,2]
[365368258,1749621044154,-490.0,0.00016438,2]
[365368261,1749621044163,-490.0,0.00016438,2]
[365368263,1749621044173,-611.70384133,0.00016438,2]
[365368264,1749621044182,-490.0,0.00016438,2]
[365368266,1749621044191,-490.0,0.00016438,2]
[365368268,1749621044201,-514.78,0.00016438,2]
[365368270,1749621044210,-490.0,0.00016438,2]
[365368273,1749621044219,-490.0,0.00016438,2]
[365368275,1749621044229,-490.0,0.00016438,2]
[365368277,1749621044238,-578.26,0.00016438,2]
[365368279,1749621044247,-532.06478221,0.00016438,2]
[365368280,1749621044256,-490.0,0.00016438,2]
[365368282,1749621044265,-563.3472589,0.00016438,2]
[365368285,1749621044276,-490.0,0.00016438,2]
[365368287,1749621044286,-584.94,0.00016438,2]
[365368289,1749621044295,-490.0,0.00016438,2]
[365368291,1749621044305,-490.0,0.00016438,2]
[365368293,1749621044315,-490.0,0.00016438,2]
[365368295,1749621044324,-490.0,0.00016438,2]
[365368297,1749621044334,-490.0,0.00016438,2]
[365368299,1749621044344,-490.0,0.00016438,2]
[365368301,1749621044353,-284.89,0.00016438,2]
[365368303,1749621044363,-490.0,0.00016438,2]
[365368305,1749621044372,-490.0,0.00016438,2]
[365368307,1749621044381,-490.0,0.00016438,2]
[365368309,1749621044391,-490.0,0.00016438,2]
[365368311,1749621044401,-294.85178952,0.00016438,2]
[365368313,1749621044410,-490.0,0.00016438,2]
[365368315,1749621044419,-490.0,0.00016438,2]
[365368317,1749621044428,-490.0,0.00016438,2]
[365368319,1749621044438,-490.0,0.00016438,2]
[365368321,1749621044447,-480.0,0.00016438,2]
[365368323,1749621044456,-490.0,0.00016438,2]
[365368325,1749621044466,-490.0,0.00016438,2]
[365368327,1749621044475,-490.0,0.00016438,2]
[365368329,1749621044484,-490.0,0.00016438,2]
[365368331,1749621044494,-490.0,0.00016438,2]
[365368333,1749621044503,-490.0,0.00016438,2]
[365368335,1749621044512,-490.0,0.00016438,2]
[365368337,1749621044522,-481.60323449,0.00016438,2]
[365368339,1749621044531,-2512.63,0.00016438,2]
[365368341,1749621044540,-272.57,0.00016438,2]
[365368343,1749621044549,-490.0,0.00016438,2]
[365368345,1749621044559,-560.67747728,0.00016438,2]
[365368347,1749621044568,-490.0,0.00016438,2]
[365368349,1749621044577,-490.0,0.00016438,2]
[365368351,1749621044586,-490.0,0.00016438,2]
[365368353,1749621044596,-490.0,0.00016438,2]
[365368355,1749621044606,-490.0,0.00016438,2]
[365368357,1749621044615,-490.0,0.00016438,2]
[365368359,1749621044625,-490.0,0.00016438,2]
[365368361,1749621044634,-490.0,0.00016438,2]
[365368363,1749621044644,-490.0,0.00016438,2]
[365368365,1749621044654,-490.0,0.00016438,2]
[365368367,1749621044663,-490.0,0.00016438,2]
[365368370,1749621044673,-416.37580811,0.00016438,2]
[365368372,1749621044682,-482.59332964,0.00016438,2]
[365368374,1749621044692,-490.0,0.00016438,2]
[365368376,1749621044701,-636.71,0.00016438,2]
[365368378,1749621044711,-490.0,0.00016438,2]
[365368380,1749621044720,-490.0,0.00016438,2]
[365368382,1749621044729,-599.66,0.00016438,2]
[365368384,1749621044739,-490.0,0.00016438,2]
[365368386,1749621044747,-490.0,0.00016438,2]
[365368388,1749621044757,-2291.25,0.00016438,2]
[365368390,1749621044766,-490.0,0.00016438,2]
[365368391,1749621044776,-555.09265628,0.00016438,2]
[365368392,1749621044785,-480.0,0.00016438,2]
[365368393,1749621044795,-490.0,0.00016438,2]
[365368394,1749621044804,-490.0,0.00016438,2]
[365368395,1749621044813,-490.0,0.00016438,2]
[365368396,1749621044823,-490.0,0.00016438,2]
[365368397,1749621044832,-490.0,0.00016438,2]
[365368398,1749621044841,-490.0,0.00016438,2]
[365368399,1749621044850,-497.19390263,0.00016438,2]
[365368400,1749621044859,-490.0,0.00016438,2]
[365368402,1749621044870,-490.0,0.00016438,2]
[365368404,1749621044879,-490.0,0.00016438,2]
[365368406,1749621044889,-490.0,0.00016438,2]
[365368408,1749621044899,-490.0,0.00016438,2]
[365368410,1749621044908,-490.0,0.00016438,2]
[365368412,1749621044917,-490.0,0.00016438,2]
[365368414,1749621044927,-480.0,0.00016438,2]
[365368416,1749621044940,-490.0,0.00016438,2]
[365368418,1749621044949,-374.16,0.00016438,2]
[365368420,1749621044958,-490.0,0.00016438,2]
[365368422,1749621044968,-490.0,0.00016438,2]
[365368424,1749621044979,-273.62,0.00016438,2]
[365368426,1749621044988,-490.0,0.00016438,2]
[365368428,1749621044998,-490.0,0.00016438,2]
[365368430,1749621045008,-490.0,0.00016438,2]
[365368432,1749621045017,-490.0,0.00016438,2]
[365368434,1749621045027,-480.0,0.00016438,2]
[365368436,1749621045036,-490.0,0.00016438,2]
[365368438,1749621045046,-500.0,0.00016601,2]
[365368441,1749621045056,-500.0,0.00016601,2]
[365368442,1749621045064,-500.0,0.00016601,2]
[365368444,1749621045074,-956.33,0.00016601,2]
[365368447,1749621045083,-500.0,0.00016601,2]
[365368448,1749621045093,-387.13671088,0.00016602,2]
[365368450,1749621045102,-490.0,0.00016602,2]
[365368453,1749621045112,-579.14,0.00016602,2]
[365368455,1749621045121,-284.28,0.00016602,2]
[365368457,1749621045131,-264.67,0.00016602,2]
[365368459,1749621045140,-490.41,0.00016602,2]
[365368461,1749621045150,-247.31,0.00016602,2]
[365368463,1749621045159,-490.0,0.00016602,2]
[365368465,1749621045169,-490.0,0.00016602,2]
[365368467,1749621045178,-339.97280947,0.00016602,2]
[365368469,1749621045188,-164.5,0.00016602,2]
[365368471,1749621045197,-197.29182454,0.00016602,2]
[365368473,1749621045206,-303.83356663,0.00016602,2]
[365368475,1749621045215,-490.0,0.00016602,2]
[365368477,1749621045224,-490.0,0.00016602,2]
[365368479,1749621045233,-490.0,0.00016602,2]
[365368481,1749621045242,-490.0,0.00016602,2]
[365368483,1749621045252,-440.3957639,0.00016602,2]
[365368485,1749621045261,-490.0,0.00016602,2]
[365368487,1749621045270,-490.0,0.00016602,2]
[365368489,1749621045279,-490.0,0.00016602,2]
[365368490,1749621045289,-490.0,0.00016602,2]
[365368492,1749621045298,-490.0,0.00016602,2]
[365368493,1749621045307,-490.0,0.00016602,2]
[365368495,1749621045317,-490.0,0.00016602,2]
[365368497,1749621045326,-490.0,0.00016602,2]
[365368499,1749621045335,-490.0,0.00016602,2]
[365368501,1749621045344,-450.0,0.00016602,2]
[365368503,1749621045354,-380.99951639,0.00016602,2]
[365368505,1749621045364,-490.0,0.00016602,2]
[365368507,1749621045373,-490.0,0.00016602,2]
[365368509,1749621045382,-490.0,0.00016602,2]
[365368511,1749621045391,-490.0,0.00016602,2]
[365368513,1749621045401,-490.0,0.00016602,2]
[365368515,1749621045410,-490.0,0.00016602,2]
[365368517,1749621045419,-430.0,0.00016602,2]
[365368519,1749621045429,-480.0,0.00016602,2]
[365368521,1749621045438,-490.0,0.00016602,2]
[365368522,1749621045448,-490.0,0.00016602,2]
[365368524,1749621045459,-531.26,0.00016602,2]
[365368526,1749621045468,-490.0,0.00016602,2]
[365368528,1749621045477,-490.0,0.00016602,2]
[365368530,1749621045487,-520.84,0.00016602,2]
[365368532,1749621045496,-490.0,0.00016602,2]
[365368534,1749621045505,-423.02076322,0.00016602,2]
[365368536,1749621045514,-455.50062051,0.00016602,2]
[365368538,1749621045524,-331.62906636,0.00016602,2]
[365368540,1749621045533,-265.00858746,0.00016602,2]
[365368542,1749621045542,-348.60540393,0.00016602,2]
[365368544,1749621045552,-490.0,0.00016602,2]
[365368546,1749621045561,-490.0,0.00016602,2]
[365368548,1749621045570,-490.0,0.00016602,2]
[365368550,1749621045580,-490.0,0.00016602,2]
[365368552,1749621045589,-436.12458065,0.00016602,2]
[365368554,1749621045597,-490.0,0.00016602,2]
[365368556,1749621045607,-502.0216932,0.00016602,2]
[365368558,1749621045615,-490.0,0.00016602,2]
[365368560,1749621045624,-490.0,0.00016602,2]
[365368562,1749621045634,-480.0,0.00016602,2]
[365368563,1749621045643,-490.0,0.00016602,2]
[365368565,1749621045651,-490.0,0.00016602,2]
[365368567,1749621045660,-490.0,0.00016602,2]
[365368569,1749621045669,-490.0,0.00016602,2]
[365368571,1749621045678,-490.0,0.00016602,2]
[365368573,1749621045687,-490.0,0.00016602,2]
[365368575,1749621045696,-490.0,0.00016602,2]
[365368577,1749621045705,-490.0,0.00016602,2]
[365368579,1749621045714,-490.0,0.00016602,2]
[365368581,1749621045723,-490.0,0.00016602,2]
[365368583,1749621045732,-490.0,0.00016602,2]
[365368585,1749621045741,-531.59,0.00016602,2]
[365368587,1749621045750,-480.0,0.00016602,2]
[365368604,1749621045876,-490.0,0.00016602,2]
[365368607,1749621045912,-480.0,0.00016602,2]
[365368608,1749621045921,-361.48225036,0.00016602,2]
[365368611,1749621045933,-188.96264318,0.00016602,2]
[365368613,1749621045942,-482.08042917,0.00016602,2]
[365368615,1749621045951,-499.01260724,0.00016602,2]
[365368616,1749621045961,-430.39080268,0.00016602,2]
[365368618,1749621045970,-295.57,0.00016602,2]
[365368620,1749621045979,-490.0,0.00016602,2]
[365368622,1749621045988,-480.0,0.00016602,2]
[365368624,1749621045999,-490.0,0.00016602,2]
[365368626,1749621046009,-238.40862338,0.00016602,2]
[365368628,1749621046018,-441.54644032,0.00016602,2]
[365368630,1749621046027,-460.0,0.00016602,2]
[365368632,1749621046037,-490.0,0.00016602,2]
[365368634,1749621046046,-490.0,0.00016602,2]
[365368636,1749621046055,-490.0,0.00016602,2]
[365368638,1749621046065,-490.0,0.00016602,2]
[365368640,1749621046075,-490.0,0.00016602,2]
[365368642,1749621046084,-229.98650563,0.00016602,2]
[365368644,1749621046094,-460.0,0.00016602,2]
[365368646,1749621046103,-251.68610013,0.00016602,2]
[365368648,1749621046113,-261.20561372,0.00016602,2]
[365368650,1749621046123,-490.0,0.00016602,2]
[365368652,1749621046132,-470.0,0.00016602,2]
[365368654,1749621046141,-604.10311721,0.00016602,2]
[365368656,1749621046151,-490.0,0.00016602,2]
[365368658,1749621046162,-490.0,0.00016602,2]
[365368660,1749621046171,-562.96850785,0.00016602,2]
[365368662,1749621046180,-490.0,0.00016602,2]
[365368664,1749621046189,-490.0,0.00016602,2]
[365368666,1749621046199,-490.0,0.00016602,2]
[365368668,1749621046208,-490.0,0.00016602,2]
[365368670,1749621046217,-490.0,0.00016602,2]
[365368672,1749621046227,-490.0,0.00016602,2]
[365368674,1749621046236,-490.0,0.00016602,2]
[365368676,1749621046245,-320.6174358,0.00016602,2]
[365368678,1749621046254,-490.0,0.00016602,2]
[365368680,1749621046264,-490.0,0.00016602,2]
[365368682,1749621046275,-322.07759457,0.00016602,2]
[365368684,1749621046284,-490.0,0.00016602,2]
[365368686,1749621046293,-490.0,0.00016602,2]
[365368688,1749621046303,-490.0,0.00016602,2]
[365368690,1749621046312,-490.0,0.00016602,2]
[365368692,1749621046322,-470.0,0.00016602,2]
[365368694,1749621046331,-490.0,0.00016602,2]
[365368696,1749621046341,-490.0,0.00016602,2]
[365368698,1749621046351,-202.60818155,0.00016602,2]
[365368700,1749621046360,-490.0,0.00016602,2]
[365368702,1749621046372,-490.0,0.00016602,2]
[365368704,1749621046381,-490.0,0.00016602,2]
[365368706,1749621046390,-490.0,0.00016602,2]
[365368708,1749621046400,-490.0,0.00016602,2]
[365368710,1749621046409,-490.0,0.00016602,2]
[365368712,1749621046418,-284.02741727,0.00016602,2]
[365368714,1749621046428,-490.0,0.00016602,2]
[365368716,1749621046437,-438.72333312,0.00016602,2]
[365368718,1749621046446,-490.0,0.00016602,2]
[365368720,1749621046456,-490.0,0.00016602,2]
[365368722,1749621046465,-490.0,0.00016602,2]
[365368724,1749621046475,-490.0,0.00016602,2]
[365368726,1749621046484,-490.0,0.00016602,2]
[365368728,1749621046493,-490.0,0.00016602,2]
[365368730,1749621046503,-490.0,0.00016602,2]
[365368732,1749621046513,-490.0,0.00016602,2]
[365368734,1749621046522,-490.0,0.00016602,2]
[365368736,1749621046531,-490.0,0.00016602,2]
[365368738,1749621046540,-480.0,0.00016602,2]
[365368740,1749621046550,-490.0,0.00016602,2]
[365368742,1749621046559,-431.29247381,0.00016602,2]
[365368744,1749621046569,-490.0,0.00016602,2]
[365368746,1749621046578,-490.0,0.00016602,2]
[365368748,1749621046587,-597.03185324,0.00016602,2]
[365368750,1749621046597,-311.25353419,0.00016602,2]
[365368752,1749621046606,-490.0,0.00016602,2]
[365368754,1749621046616,-490.0,0.00016602,2]
[365368756,1749621046625,-490.0,0.00016602,2]
[365368758,1749621046635,-484.338543,0.00016602,2]
[365368760,1749621046644,-386.6,0.00016602,2]
[365368761,1749621046654,-463.18952859,0.00016602,2]
[365368763,1749621046663,-490.0,0.00016602,2]
[365368766,1749621046673,-490.0,0.00016602,2]
[365368767,1749621046683,-512.89184505,0.00016602,2]
[365368770,1749621046692,-427.38044901,0.00016602,2]
[365368772,1749621046702,-586.45674807,0.00016602,2]
[365368774,1749621046711,-490.0,0.00016602,2]
[365368775,1749621046721,-473.39137707,0.00016602,2]
[365368777,1749621046730,-150.03,0.00016602,2]
[365368780,1749621046739,-490.0,0.00016602,2]
[365368782,1749621046749,-488.40644973,0.00016602,2]
[365368783,1749621046758,-490.0,0.00016602,2]
[365368786,1749621046768,-375.37602264,0.00016602,2]
[365368788,1749621046778,-490.0,0.00016602,2]
[365368789,1749621046787,-311.83988331,0.00016602,2]
[365368791,1749621046796,-426.10754508,0.00016602,2]
[365368793,1749621046805,-490.0,0.00016602,2]
[365368795,1749621046814,-490.0,0.00016602,2]
[365368797,1749621046823,-490.0,0.00016602,2]
[365368799,1749621046833,-490.0,0.00016602,2]
[365368801,1749621046842,-490.0,0.00016602,2]
[365368803,1749621046851,-490.0,0.00016602,2]
[365368805,1749621046861,-490.0,0.00016602,2]
[365368807,1749621046870,-527.11209013,0.00016602,2]
[365368809,1749621046880,-490.0,0.00016602,2]
[365368811,1749621046890,-490.0,0.00016602,2]
[365368813,1749621046899,-490.0,0.00016602,2]
[365368815,1749621046909,-490.0,0.00016602,2]
[365368817,1749621046918,-490.0,0.00016602,2]
[365368819,1749621046929,-509.74,0.00016602,2]
[365368821,1749621046944,-490.0,0.00016602,2]
[365368823,1749621046953,-490.0,0.00016602,2]
[365368825,1749621046962,-474.29884663,0.00016602,2]
[365368827,1749621046972,-490.0,0.00016602,2]
[365368829,1749621046982,-490.0,0.00016602,2]
[365368831,1749621046991,-398.70342694,0.00016602,2]
[365368833,1749621047001,-490.0,0.00016602,2]
[365368835,1749621047011,-490.0,0.00016602,2]
[365368837,1749621047021,-490.0,0.00016602,2]
[365368839,1749621047031,-490.0,0.00016602,2]
[365368841,1749621047042,-490.0,0.00016602,2]
[365368843,1749621047051,-490.0,0.00016602,2]
[365368845,1749621047060,-490.0,0.00016602,2]
[365368847,1749621047070,-490.0,0.00016602,2]
[365368849,1749621047079,-490.0,0.00016602,2]
[365368851,1749621047088,-386.83727468,0.00016602,2]
[365368852,1749621047098,-456.32767154,0.00016602,2]
[365368853,1749621047108,-2512.63,0.00016602,2]
[365368854,1749621047117,-490.0,0.00016602,2]
[365368855,1749621047128,-490.0,0.00016602,2]
[365368856,1749621047137,-490.0,0.00016602,2]
[365368857,1749621047146,-490.0,0.00016602,2]
[365368858,1749621047156,-490.0,0.00016602,2]
[365368859,1749621047166,-490.0,0.00016602,2]
[365368860,1749621047175,-490.0,0.00016602,2]
[365368861,1749621047186,-490.0,0.00016602,2]
[365368863,1749621047195,-490.0,0.00016602,2]
[365368865,1749621047205,-342.50901399,0.00016602,2]
[365368867,1749621047214,-490.0,0.00016602,2]
[365368869,1749621047225,-490.0,0.00016602,2]
[365368871,1749621047235,-490.0,0.00016602,2]
[365368872,1749621047243,-490.0,0.00016602,2]
[365368874,1749621047253,-599.66,0.00016602,2]
[365368876,1749621047263,-490.0,0.00016602,2]
[365368878,1749621047272,-174.86756446,0.00016602,2]
[365368880,1749621047282,-2291.25,0.00016602,2]
[365368882,1749621047291,-490.0,0.00016602,2]
[365368884,1749621047301,-165.28150922,0.00016602,2]
[365368886,1749621047310,-490.0,0.00016602,2]
[365368888,1749621047320,-513.3634346,0.00016602,2]
[365368890,1749621047329,-490.0,0.00016602,2]
[365368892,1749621047338,-378.18,0.00016602,2]
[365368894,1749621047349,-370.15,0.00016602,2]
[365368896,1749621047358,-480.0,0.00016602,2]
[365368898,1749621047368,-490.0,0.00016602,2]
[365368900,1749621047377,-274.52498541,0.00016602,2]
[365368902,1749621047386,-490.0,0.00016602,2]
[365368904,1749621047396,-490.0,0.00016602,2]
[365368906,1749621047406,-490.0,0.00016602,2]
[365368908,1749621047415,-490.0,0.00016602,2]
[365368910,1749621047425,-603.61247584,0.00016602,2]
[365368912,1749621047434,-490.0,0.00016602,2]
[365368914,1749621047443,-490.0,0.00016602,2]
[365368916,1749621047452,-458.29,0.00016602,2]
[365368918,1749621047463,-498.08,0.00016602,2]
[365368920,1749621047472,-490.0,0.00016602,2]
[365368922,1749621047481,-490.0,0.00016602,2]
[365368924,1749621047491,-243.6,0.00016602,2]
[365368926,1749621047500,-715.49769219,0.00016734,2]
[365368928,1749621047509,-490.0,0.00016767,2]
[365368930,1749621047519,-576.02775273,0.00016767,2]
[365368932,1749621047528,-384.84897597,0.00016767,2]
[365368934,1749621047538,-466.62736514,0.00016767,2]
[365368936,1749621047547,-363.77813257,0.00016767,2]
[365368938,1749621047556,-470.0,0.00016767,2]
[365368940,1749621047565,-217.28149091,0.00016767,2]
[365368942,1749621047574,-490.0,0.00016767,2]
[365368944,1749621047584,-470.0,0.00016767,2]
[365368946,1749621047593,-470.0,0.00016767,2]
[365368948,1749621047603,-490.0,0.00016767,2]
[365368950,1749621047612,-490.0,0.00016767,2]
[365368952,1749621047621,-329.54955283,0.00016767,2]
[365368954,1749621047630,-490.0,0.00016767,2]
[365368956,1749621047639,-490.0,0.00016767,2]
[365368958,1749621047649,-310.27,0.00016767,2]
[365368960,1749621047658,-523.07,0.00016767,2]
[365368962,1749621047668,-490.0,0.00016767,2]
[365368964,1749621047677,-450.09023218,0.00016767,2]
[365368966,1749621047687,-490.0,0.00016767,2]
[365368968,1749621047695,-490.0,0.00016767,2]
[365368970,1749621047704,-321.62,0.00016767,2]
[365368972,1749621047713,-490.0,0.00016767,2]
[365368973,1749621047722,-450.0,0.00016767,2]
[365368976,1749621047733,-490.0,0.00016767,2]
[365368977,1749621047743,-396.98128477,0.00016767,2]
[365368979,1749621047752,-490.0,0.00016767,2]
[365368982,1749621047762,-450.0,0.00016767,2]
[365368984,1749621047771,-490.0,0.00016767,2]
[365368986,1749621047780,-304.83227495,0.00016767,2]
[365368988,1749621047790,-490.0,0.00016767,2]
[365368989,1749621047799,-317.48,0.00016767,2]
[365368992,1749621047809,-463.55,0.00016767,2]
[365368993,1749621047818,-487.72688492,0.00016767,2]
[365368995,1749621047827,-490.0,0.00016767,2]
[365368998,1749621047837,-490.0,0.00016767,2]
[365369000,1749621047847,-509.53749717,0.00016767,2]
[365369001,1749621047856,-490.0,0.00016767,2]
[365369004,1749621047865,-490.71,0.00016767,2]
[365369005,1749621047874,-490.0,0.00016767,2]
[365369007,1749621047884,-399.43398112,0.00016767,2]
[365369010,1749621047893,-490.0,0.00016767,2]
[365369012,1749621047904,-490.0,0.00016767,2]
[365369013,1749621047914,-296.75793499,0.00016767,2]
[365369015,1749621047924,-490.0,0.00016767,2]
[365369017,1749621047938,-490.0,0.00016767,2]
[365369019,1749621047947,-467.48165676,0.00016767,2]
[365369021,1749621047957,-490.0,0.00016767,2]
[365369023,1749621047967,-490.0,0.00016767,2]
[365369025,1749621047977,-490.0,0.00016767,2]
[365369027,1749621047986,-490.0,0.00016767,2]